bitfinex/quotes_SOLUSD_20240625
["timestamp","ask_amount","ask_price","bid_price","bid_amount"]
[1719314907926,7.2401,138.12,138.08,25.3467]
[1719314908126,7.2406,138.11,138.07,7.2425]
[1719314908427,7.2406,138.11,138.06,7.243]
[1719314908722,132.4612,138.14,138.06,7.243]
[1719314908931,32.4612,138.14,138.07,7.2426]
[1719314909129,7.2401,138.12,138.08,7.2421]
[1719314909331,7.2397,138.13,138.08,7.2421]
[1719314909706,7.2402,138.12,138.07,25.349]
[1719314909911,7.2389,138.15,138.09,18.1037]
[1719314910120,6.5229,138.17,138.11,7.2402]
[1719314910121,7.2383,138.16,138.11,7.2402]
[1719314910818,7.2412,138.1,138.05,7.2437]
[1719314911009,7.2417,138.09,138.05,25.3522]
[1719314911334,7.2411,138.1,138.06,7.2432]
[1719314911507,7.2407,138.11,138.06,7.2432]
[1719314912125,126.45,138.15,138.07,7.2426]
[1719314912325,7.2406,138.11,138.06,7.243]
[1719314912634,7.2411,138.1,138.05,25.3524]
[1719314912829,7.2416,138.09,138.05,25.3524]
[1719314913037,7.2427,138.07,138.04,14.7743]
[1719314913218,7.2422,138.08,138.04,14.7743]
[1719314913538,7.2417,138.09,138.04,22.0185]
[1719314914535,7.2417,138.09,138.05,7.2437]
[1719314915236,15.8746,138.12,138.04,32.8847]
[1719314915426,7.2397,138.13,138.08,7.2421]
[1719314915827,7.2397,138.13,138.09,7.2416]
[1719314916029,7.2402,138.12,138.08,18.1052]
[1719314916335,7.2401,138.12,138.07,7.2425]
[1719314916540,7.2401,138.12,138.08,0.70710973]
[1719314917036,7.2406,138.11,138.07,7.2425]
[1719314917333,7.2406,138.11,138.06,7.243]
[1719314918064,18.099,138.13,138.05,25.6919]
[1719314918220,7.2413,138.1,138.05,25.3519]
[1719314919031,7.2417,138.09,138.05,18.1082]
[1719314919368,7.2425,138.08,138.03,7.2447]
[1719314919555,7.2436,138.06,138.01,28.3982]
[1719314919717,18.1022,138.11,138.02,7.2452]
[1719314919718,7.2428,138.07,138.02,7.2452]
[1719314920353,7.2428,138.07,138.02,7.2451]
[1719314920934,122.5356,138.09,138.04,7.2441]
[1719314921142,15.2938,138.09,138.05,7.2437]
[1719314921329,15.2938,138.09,138.03,18.1115]
[1719314921734,7.2424,138.08,138.03,25.356]
[1719314922132,7.2427,138.07,138.03,18.1115]
[1719314922348,7.2422,138.08,138.03,25.3557]
[1719314922554,7.2422,138.08,138.04,7.2442]
[1719314922934,7.2427,138.07,138.03,18.1115]
[1719314923357,100.0,138.07,137.99,7.2468]
[1719314923659,7.2441,138.05,138.0,7.246]
[1719314923958,7.2448,138.03,137.99,25.3639]
[1719314924645,126.45,138.07,138.0,7.2462]
[1719314924646,7.2439,138.05,138.0,7.2462]
[1719314924859,115.2938,138.09,137.95,36.2429]
[1719314924860,7.2434,138.06,138.01,18.1144]
[1719314925027,7.2428,138.07,138.02,7.2453]
[1719314925229,7.2435,138.06,138.01,25.36]
[1719314925735,15.2938,138.09,138.01,18.1144]
[1719314925934,7.2433,138.06,138.01,25.3597]
[1719314927035,15.2938,138.09,138.03,18.1118]
[1719314927238,22.5359,138.09,138.04,7.2438]
[1719314927454,15.2938,138.09,138.03,18.1118]
[1719314927645,22.5356,138.09,138.04,7.2438]
[1719314927989,7.2412,138.1,138.05,7.2437]
[1719314928748,7.2416,138.09,138.04,7.244]
[1719314929394,7.2408,138.11,138.06,7.243]
[1719314929849,7.2411,138.1,138.05,25.3527]
[1719314930433,16.5626,138.12,138.05,18.1092]
[1719314930865,7.2406,138.11,138.06,7.243]
[1719314931156,7.2406,138.11,138.0,42.9124]
[1719314931157,100.0,138.11,138.02,18.1123]
[1719314931356,7.2428,138.07,138.02,18.1123]
[1719314931565,7.2428,138.07,138.02,25.3572]
[1719314932134,7.2428,138.07,138.02,7.2452]
[1719314933074,118.1024,138.11,138.01,18.1143]
[1719314933274,7.2425,138.08,138.03,7.2447]
[1719314934046,7.2418,138.09,138.04,7.2442]
[1719314934247,7.2412,138.1,138.05,7.2436]
[1719314934965,7.2406,138.11,138.06,7.243]
[1719314935545,7.2412,138.1,138.05,25.3524]
[1719314935854,34.6629,138.12,138.04,0.17]
[1719314936047,7.2421,138.08,138.03,7.2443]
[1719314936657,7.2427,138.07,138.02,25.6976]
[1719314937166,7.2427,138.07,138.0,21.1624]
[1719314937167,126.45,138.11,138.0,28.4087]
[1719314937463,7.2441,138.05,138.0,14.7743]
[1719314937650,7.2433,138.06,138.01,7.2457]
[1719314938167,7.2438,138.05,138.0,22.0204]
[1719314938965,7.2438,138.05,138.0,7.2461]
[1719314939265,7.2438,138.05,138.0,7.2463]
[1719314939443,15.7717,138.06,137.99,18.116]
[1719314939647,7.2442,138.05,138.0,7.246]
[1719314940355,23.0151,138.06,138.01,7.2458]
[1719314940552,15.7717,138.06,137.99,18.116]
[1719314940758,23.0149,138.06,138.01,25.36]
[1719314940956,7.2428,138.07,138.02,7.2453]
[1719314941159,7.2444,138.04,137.99,7.2467]
[1719314941379,7.2438,138.05,138.0,7.246]
[1719314941575,7.2433,138.06,138.01,7.2458]
[1719314941785,7.2427,138.07,138.02,7.2452]
[1719314942255,40.1968,138.08,138.02,18.1124]
[1719314942580,6.5045,138.08,138.02,25.3575]
[1719314942877,7.243,138.07,138.02,25.3575]
[1719314943660,7.2432,138.06,138.02,18.1124]
[1719314943872,13.7471,138.08,138.02,25.3575]
[1719314944420,7.2426,138.08,138.03,7.2447]
[1719314944756,7.2429,138.07,138.02,18.1124]
[1719314944987,7.2429,138.07,138.02,25.3575]
[1719314945659,26.45,138.08,137.99,18.1166]
[1719314946767,7.2438,138.05,138.0,7.246]
[1719314947083,7.2429,138.07,138.02,7.245]
[1719314949069,7.2432,138.06,138.01,25.3601]
[1719314953480,115.8428,138.09,137.98,0.34]
[1719314953672,115.8428,138.09,137.98,18.458]
[1719314953673,18.1068,138.07,137.98,18.458]
[1719314953984,7.2446,138.04,138.0,7.2463]
[1719314954191,7.2438,138.05,138.0,7.2463]
[1719314954985,100.0,138.06,137.97,14.7743]
[1719314955562,100.0,138.06,137.98,7.2473]
[1719314955563,118.1081,138.06,137.98,7.2473]
[1719314955784,118.1081,138.06,137.99,7.2467]
[1719314956092,7.2448,138.03,137.98,25.3657]
[1719314956891,7.2448,138.03,137.99,7.2468]
[1719314957196,6.1598,138.07,138.02,7.2453]
[1719314957363,13.4028,138.07,138.02,7.2453]
[1719314958062,13.4028,138.07,138.02,25.3585]
[1719314958268,7.2433,138.06,138.02,18.1132]
[1719314958993,13.4027,138.07,138.02,18.1132]
[1719314959486,13.4027,138.07,138.02,25.3583]
[1719314959689,7.2422,138.08,138.03,7.2447]
[1719314960265,7.2422,138.08,138.02,18.1132]
[1719314960266,6.4436,138.11,138.04,18.1105]
[1719314960467,7.2411,138.1,138.05,7.2434]
[1719314960795,7.2412,138.1,138.05,7.2434]
[1719314962674,106.4436,138.11,138.04,18.1105]
[1719314963196,26.45,138.1,138.01,18.1138]
[1719314963591,7.2431,138.07,138.02,7.245]
[1719314966101,7.2423,138.08,138.03,7.2446]
[1719314966607,7.2427,138.07,138.03,7.2446]
[1719314966780,7.2427,138.07,138.02,7.2451]
[1719314966975,7.2427,138.07,137.98,32.8918]
[1719314966976,100.0,138.06,137.98,32.8918]
[1719314967291,13.3464,138.05,138.0,7.2463]
[1719314967487,6.1024,138.05,138.01,7.2458]
[1719314967799,13.3463,138.05,138.0,25.362]
[1719314968008,6.1024,138.05,138.0,18.1157]
[1719314968795,6.1024,138.05,138.01,7.2458]
[1719314968995,6.1024,138.05,138.02,7.245]
[1719314969801,7.2444,138.04,137.99,7.2468]
[1719314970020,6.1024,138.05,138.0,7.246]
[1719314970021,13.3463,138.05,138.0,7.246]
[1719314970299,13.3462,138.05,138.0,7.246]
[1719314970504,7.2443,138.04,137.99,25.3635]
[1719314970678,13.3463,138.05,137.99,18.1169]
[1719314970877,13.3463,138.05,138.0,7.2462]
[1719314971097,7.2448,138.03,137.99,18.1169]
[1719314971402,7.2455,138.02,137.97,7.2475]
[1719314971587,7.2448,138.03,137.98,7.2473]
[1719314973181,6.1024,138.05,137.95,6.419]
[1719314973492,6.1024,138.05,137.99,7.2468]
[1719314973493,7.2444,138.04,137.99,7.2468]
[1719314973694,6.1024,138.05,138.0,18.1157]
[1719314973901,7.2444,138.04,137.97,18.1187]
[1719314974711,7.2448,138.03,137.97,18.1187]
[1719314975215,7.2448,138.03,137.98,7.247]
[1719314976300,15.9679,138.01,137.94,18.1229]
[1719314976611,7.2464,138.0,137.94,18.1229]
[1719314977191,7.2464,138.0,137.95,7.2489]
[1719314977701,7.2464,138.0,137.91,36.2533]
[1719314977702,6.2093,137.99,137.92,7.25]
[1719314977890,6.2093,137.99,137.91,18.1268]
[1719314978089,7.2491,137.95,137.91,18.1268]
[1719314978389,7.2491,137.95,137.84,26.45]
[1719314978390,126.45,137.92,137.8,6.5282]
[1719314978596,26.45,137.92,137.8,6.5282]
[1719314978796,33.7009,137.92,137.8,6.5282]
[1719314978997,28.9819,137.94,137.81,21.79]
[1719314979196,100.0,137.92,137.8,12.22632722]
[1719314979397,7.2523,137.89,137.8,12.22632722]
[1719314979887,7.2517,137.9,137.8,12.22632722]
[1719314980309,21.732,137.94,137.8,34.01632722]
[1719314980610,148.182,137.94,137.8,34.01632722]
[1719314980786,7.2507,137.92,137.8,34.01632722]
[1719314981508,55.4316,137.94,137.81,41.79]
[1719314981694,106.0862,137.98,137.83,15.7228]
[1719314981900,26.45,137.96,137.84,42.13]
[1719314982289,33.6985,137.96,137.84,42.13]
[1719314983001,26.45,137.96,137.84,20.34]
[1719314983205,26.45,137.96,137.84,42.13]
[1719314983417,33.6988,137.96,137.84,42.13]
[1719314983615,7.249,137.95,137.84,42.13]
[1719314984001,26.45,137.96,137.84,20.34]
[1719314984002,7.2495,137.94,137.84,20.34]
[1719314984312,33.6985,137.96,137.84,0.34]
[1719314984517,33.6985,137.96,137.84,20.34]
[1719314985121,7.248,137.97,137.85,6.0105]
[1719314985305,7.248,137.97,137.86,0.34]
[1719314985700,7.2485,137.96,137.86,0.34]
[1719314985899,7.251,137.92,137.86,0.17]
[1719314986113,26.45,137.95,137.86,0.17]
[1719314986491,33.699,137.95,137.85,6.0105]
[1719314986697,33.6994,137.95,137.85,6.0105]
[1719314986909,7.2499,137.94,137.85,6.0105]
[1719314987097,26.45,137.95,137.85,6.0105]
[1719314987298,7.25,137.93,137.86,0.17]
[1719314987591,7.2501,137.93,137.86,0.34]
[1719314988024,7.2501,137.93,137.86,0.17]
[1719314988932,7.2506,137.92,137.86,0.17]
[1719314989220,126.45,137.95,137.85,6.0105]
[1719314989402,7.251,137.92,137.85,6.0105]
[1719314990016,7.2502,137.93,137.85,6.0105]
[1719314990422,7.2496,137.94,137.86,0.17]
[1719314990623,100.0,137.97,137.86,0.34]
[1719314990927,7.2502,137.93,137.86,0.34]
[1719314991235,144.5703,137.97,137.86,0.34]
[1719314991525,7.2498,137.94,137.86,0.34]
[1719314991724,7.2486,137.96,137.86,0.34]
[1719314991926,7.2491,137.95,137.86,0.34]
[1719314992223,26.45,137.97,137.86,0.34]
[1719314992607,7.249,137.95,137.86,0.34]
[1719314993132,7.2485,137.96,137.86,0.34]
[1719314993709,7.2502,137.93,137.85,6.0105]
[1719314993907,7.2497,137.94,137.85,6.0105]
[1719314994411,7.2501,137.93,137.85,6.0105]
[1719314995145,7.2497,137.94,137.86,0.34]
[1719314995308,7.2491,137.95,137.86,0.34]
[1719314996130,7.2491,137.95,137.86,0.00146366]
[1719314996733,26.45,137.97,137.86,0.00146366]
[1719314997033,7.2489,137.96,137.86,0.00146366]
[1719314997228,7.248,137.97,137.86,0.00146366]
[1719314997437,7.53485558,137.99,137.87,37.2999]
[1719314997624,7.2488,137.96,137.87,15.5099]
[1719314997815,7.249,137.95,137.87,15.5099]
[1719314998011,7.2485,137.96,137.87,15.5099]
[1719314998216,7.2485,137.96,137.88,0.34]
[1719314998929,7.2495,137.94,137.88,0.34]
[1719314999130,7.2491,137.95,137.88,0.34]
[1719314999651,7.2485,137.96,137.88,0.34]
[1719314999935,7.2482,137.97,137.88,0.34]
[1719315000115,7.2484,137.96,137.88,0.34]
[1719315000840,55.68311889,138.0,137.88,0.34]
[1719315001017,37.56701889,138.0,137.88,0.34]
[1719315001523,7.2476,137.98,137.88,0.34]
[1719315001723,7.247,137.99,137.89,6.6054]
[1719315002032,37.56701889,138.0,137.9,0.34]
[1719315002033,18.36341889,138.0,137.9,0.34]
[1719315002342,7.2469,137.99,137.9,20.34]
[1719315002526,11.11701889,138.0,137.9,20.34]
[1719315002722,11.11701889,138.0,137.91,15.3407]
[1719315003025,7.2462,138.01,137.92,0.34]
[1719315003331,16.5902,138.03,137.92,0.34]
[1719315003530,7.2462,138.01,137.92,0.34]
[1719315003746,7.2455,138.02,137.92,0.34]
[1719315003956,7.2455,138.02,137.92,2.61452195]
[1719315004549,7.2459,138.01,137.92,2.61452195]
[1719315004849,7.2459,138.01,137.92,0.34]
[1719315006157,7.2464,138.0,137.92,0.34]
[1719315006528,7.246,138.01,137.92,0.34]
[1719315007151,7.2454,138.02,137.92,0.34]
[1719315007855,7.2458,138.01,137.92,0.34]
[1719315008231,7.2454,138.02,137.92,0.34]
[1719315008436,7.246,138.01,137.92,20.34]
[1719315008633,7.2453,138.03,137.93,6.52]
[1719315008844,18.66104285,138.04,137.95,16.1336]
[1719315009032,7.2444,138.04,137.96,0.34]
[1719315009235,7.5434149,138.06,137.97,6.5961]
[1719315009473,14.7870149,138.06,137.98,0.17]
[1719315009753,7.2437,138.05,137.98,0.34]
[1719315009942,24.3689,138.09,137.98,0.34]
[1719315009943,7.2431,138.07,137.98,0.34]
[1719315010261,7.2444,138.04,137.98,0.34]
[1719315010424,100.0,138.06,137.97,6.5961]
[1719315010737,7.2449,138.03,137.97,6.5961]
[1719315011055,7.2462,138.01,137.95,16.1336]
[1719315011250,18.1126,138.03,137.95,16.1336]
[1719315011562,7.2465,138.0,137.95,16.1336]
[1719315011867,7.246,138.01,137.95,16.1336]
[1719315012162,18.1126,138.03,137.95,16.1336]
[1719315012540,21.2837,138.09,137.95,37.9236]
[1719315012736,7.2425,138.08,137.96,6.6487]
[1719315012942,22.2606,138.09,137.96,28.4387]
[1719315013239,7.2422,138.08,137.98,15.6656]
[1719315013463,7.2418,138.09,137.99,0.17]
[1719315013642,7.2418,138.09,137.99,0.34]
[1719315013826,118.1055,138.08,137.99,0.34]
[1719315014029,7.2438,138.05,137.98,15.6656]
[1719315014250,7.2446,138.04,137.98,15.6656]
[1719315014483,7.2439,138.05,137.98,15.6656]
[1719315014761,7.2427,138.07,137.99,0.34]
[1719315014960,7.2423,138.08,137.99,0.34]
[1719315015174,7.2427,138.07,137.99,0.34]
[1719315015461,17.24535222,138.09,137.99,0.34]
[1719315015657,7.2413,138.1,137.99,0.34]
[1719315016343,7.2416,138.09,137.99,0.34]
[1719315017151,7.2409,138.11,138.0,6.2608]
[1719315017344,7.2409,138.11,138.01,20.34]
[1719315017971,7.2412,138.1,138.01,20.34]
[1719315018349,7.2407,138.11,138.01,20.34]
[1719315018774,7.2407,138.11,138.02,0.52148138]
[1719315018972,7.2407,138.11,138.03,0.34]
[1719315019498,7.21806043,138.11,138.03,0.34]
[1719315019685,7.21806043,138.11,138.04,0.17]
[1719315019851,7.21806043,138.11,138.02,0.34]
[1719315024451,7.2402,138.12,138.02,0.34]
[1719315024653,7.2406,138.11,138.02,0.34]
[1719315024959,7.2406,138.11,138.0,6.2608]
[1719315024960,100.0,138.09,138.0,6.2608]
[1719315025146,7.2431,138.07,138.0,6.2608]
[1719315025345,7.2432,138.06,138.0,6.2608]
[1719315025547,110.00335222,138.11,138.0,6.2608]
[1719315025967,7.2424,138.08,138.0,6.2608]
[1719315026343,7.2424,138.08,138.01,0.17]
[1719315026764,7.2418,138.09,138.01,0.17]
[1719315027463,10.00335222,138.11,138.01,0.17]
[1719315027778,21.8358,138.13,138.02,16.2119]
[1719315028077,7.2407,138.11,138.03,0.34]
[1719315028373,121.8358,138.13,138.03,0.34]
[1719315028878,7.2414,138.1,138.03,0.34]
[1719315029071,7.2407,138.11,138.03,0.34]
[1719315031475,7.2412,138.1,138.03,0.34]
[1719315031853,7.2407,138.11,138.03,0.34]
[1719315032969,15.3982,138.13,138.03,0.34]
[1719315033474,7.2407,138.11,138.03,0.34]
[1719315033851,15.3982,138.13,138.03,0.34]
[1719315034501,7.241,138.11,138.03,0.34]
[1719315034860,7.2411,138.1,138.03,0.34]
[1719315035960,7.2417,138.09,138.03,0.34]
[1719315036368,7.2413,138.1,138.03,0.34]
[1719315036977,7.2408,138.11,138.03,0.34]
[1719315037197,7.53992106,138.14,138.04,6.5904]
[1719315037355,36.50335222,138.15,138.05,0.34]
[1719315037684,7.2381,138.16,138.06,16.1389]
[1719315037877,7.2381,138.16,138.07,0.34]
[1719315039183,10.00335222,138.19,138.08,6.0376]
[1719315039500,7.2371,138.18,138.09,0.34]
[1719315041067,10.00335222,138.19,138.09,0.34]
[1719315041279,7.2385,138.15,138.09,0.34]
[1719315041864,7.2381,138.16,138.09,0.34]
[1719315042790,110.00335222,138.19,138.09,0.34]
[1719315042791,7.2371,138.18,138.09,0.34]
[1719315043675,17.23975222,138.19,138.1,16.4082]
[1719315043884,33.7359,138.2,138.11,0.34]
[1719315044374,33.7359,138.2,138.11,1.7874773]
[1719315044763,7.2359,138.2,138.12,6.4682]
[1719315045079,7.2359,138.2,138.13,1.78848705]
[1719315045264,7.2359,138.2,138.13,2.15789313]
[1719315045466,295.40335222,138.23,138.14,15.8079]
[1719315045665,295.40335222,138.23,138.15,0.34]
[1719315045877,7.2348,138.22,138.15,0.34]
[1719315046796,43.73775222,138.23,138.15,0.34]
[1719315046974,10.00335222,138.23,138.15,0.34]
[1719315047180,7.2339,138.24,138.15,0.34]
[1719315047888,7.2343,138.23,138.15,0.34]
[1719315048206,54.58625222,138.26,138.15,0.34]
[1719315048207,7.235,138.22,138.15,0.34]
[1719315048706,7.2354,138.21,138.15,0.34]
[1719315049388,7.2349,138.22,138.15,0.34]
[1719315050005,7.2345,138.23,138.15,0.34]
[1719315050181,7.2349,138.22,138.15,0.34]
[1719315052602,7.2343,138.23,138.15,0.34]
[1719315052995,7.2349,138.22,138.14,15.6479]
[1719315053199,100.0,138.25,138.14,15.6479]
[1719315053504,7.235,138.22,138.14,15.6479]
[1719315053886,7.2356,138.21,138.14,15.6479]
[1719315054198,7.235,138.22,138.14,15.6479]
[1719315054403,44.5849,138.24,138.14,15.6479]
[1719315054609,7.2357,138.21,138.14,15.6479]
[1719315054802,7.236,138.2,138.14,15.6479]
[1719315055002,7.2355,138.21,138.14,15.6479]
[1719315056403,7.2359,138.2,138.14,15.6479]
[1719315056791,7.2355,138.21,138.14,15.6479]
[1719315057404,7.2359,138.2,138.14,15.6479]
[1719315057708,7.2355,138.21,138.14,15.6479]
[1719315059612,7.235,138.22,138.14,15.6479]
[1719315060209,7.2354,138.21,138.14,15.6479]
[1719315062798,7.2359,138.2,138.14,15.6479]
[1719315064910,26.5,138.24,138.15,0.17]
[1719315065118,7.2343,138.23,138.15,0.34]
[1719315065298,100.0,138.23,138.14,15.6479]
[1719315065489,7.2362,138.2,138.14,15.6479]
[1719315065711,26.5,138.21,138.14,15.6479]
[1719315065890,7.238,138.16,138.09,15.5189]
[1719315066117,7.2375,138.17,138.09,15.5189]
[1719315066914,7.2371,138.18,138.09,15.5189]
[1719315067112,7.237,138.18,138.09,15.5189]
[1719315067419,7.2376,138.17,138.09,15.5189]
[1719315067995,7.2376,138.17,138.1,0.17]
[1719315068194,126.5,138.19,138.1,0.17]
[1719315068195,7.237,138.18,138.1,0.17]
[1719315068409,7.237,138.18,138.1,0.34]
[1719315068614,7.2376,138.17,138.1,0.34]
[1719315070431,144.5914,138.19,138.09,15.5189]
[1719315070612,154.59475222,138.19,138.09,15.5189]
[1719315070927,7.2385,138.15,138.09,15.5189]
[1719315071300,7.239,138.14,138.09,15.5189]
[1719315072013,7.2387,138.15,138.09,15.5189]
[1719315072899,26.5,138.16,138.09,15.5189]
[1719315073214,7.2375,138.17,138.09,15.5189]
[1719315075027,7.2372,138.18,138.09,15.5189]
[1719315075320,7.2372,138.18,138.1,0.34]
[1719315075801,10.00335222,138.19,138.1,0.34]
[1719315075802,7.2377,138.17,138.1,0.34]
[1719315076896,7.2385,138.15,138.09,15.5189]
[1719315077620,7.2381,138.16,138.09,15.5189]
[1719315077930,7.239,138.14,138.09,15.5189]
[1719315078224,7.2393,138.14,138.09,15.5189]
[1719315079600,7.2381,138.16,138.09,15.5189]
[1719315080034,7.2385,138.15,138.09,15.5189]
[1719315081914,7.2398,138.13,138.09,15.5189]
[1719315082725,7.2391,138.14,138.09,15.5189]
[1719315083808,7.2401,138.12,138.05,22.6784]
[1719315084808,7.2396,138.13,138.05,22.6784]
[1719315085130,100.0,138.22,138.08,15.3791]
[1719315085299,100.0,138.22,138.1,21.4708]
[1719315085506,7.2356,138.21,138.11,0.34]
[1719315086323,26.5,138.23,138.12,22.8968]
[1719315086508,7.2346,138.23,138.13,1.62377676]
[1719315086706,110.00335222,138.24,138.13,1.62377676]
[1719315086934,7.2359,138.2,138.12,22.8968]
[1719315087632,7.2354,138.21,138.12,22.8968]
[1719315087924,7.2349,138.22,138.12,22.8968]
[1719315088136,7.2349,138.22,138.13,0.34]
[1719315088309,110.00335222,138.22,138.12,22.8968]
[1719315088625,7.236,138.2,138.12,22.8968]
[1719315089549,7.2355,138.21,138.12,22.8968]
[1719315089715,7.2355,138.21,138.13,1.44594662]
[1719315090030,17.23835222,138.22,138.14,0.17]
[1719315090214,17.23835222,138.22,138.14,3.08649193]
[1719315090526,7.2353,138.21,138.14,0.34]
[1719315090729,7.2353,138.21,138.13,0.34]
[1719315091429,110.00335222,138.22,138.12,22.8968]
[1719315091634,7.2367,138.19,138.12,22.8968]
[1719315093233,7.236,138.2,138.12,22.8968]
[1719315096628,7.2355,138.21,138.12,22.8968]
[1719315096836,136.50335222,138.22,138.12,22.8968]
[1719315097034,143.73845222,138.22,138.12,22.8968]
[1719315097623,43.73845222,138.22,138.12,22.8968]
[1719315097934,36.50335222,138.22,138.13,0.34]
[1719315098441,7.2353,138.21,138.13,0.34]
[1719315099011,43.73825222,138.22,138.13,0.34]
[1719315099511,7.2354,138.21,138.13,0.34]
[1719315099713,36.50335222,138.22,138.13,0.34]
[1719315099915,136.50335222,138.22,138.12,22.8968]
[1719315100114,7.2366,138.19,138.12,22.8968]
[1719315100330,7.2371,138.18,138.12,22.8968]
[1719315100860,7.2375,138.17,138.12,22.8968]
[1719315101149,7.2367,138.19,138.12,22.8968]
[1719315101722,7.2367,138.19,138.13,1.44776959]
[1719315102147,7.2367,138.19,138.12,22.8968]
[1719315102148,7.2369,138.18,138.12,22.8968]
[1719315105326,7.2369,138.18,138.12,22.3968]
[1719315106628,8.82,138.16,138.12,22.3968]
[1719315106823,7.2369,138.18,138.12,22.3968]
[1719315107023,8.82,138.16,138.12,22.3968]
[1719315107946,7.2366,138.19,138.12,22.3968]
[1719315108147,8.82,138.16,138.12,22.3968]
[1719315111028,7.2369,138.18,138.12,22.3968]
[1719315111231,8.82,138.16,138.12,22.3968]
[1719315111944,117.54436426,138.22,138.12,22.3968]
[1719315112253,8.82,138.16,138.12,22.3968]
[1719315113454,8.82,138.16,138.12,23.05600815]
[1719315113657,8.82,138.16,138.12,22.3968]
[1719315114645,8.82,138.14,138.12,16.3929]
[1719315114855,8.82,138.13,138.12,16.3929]
[1719315116022,8.82,138.13,138.09,21.3873]
[1719315116243,8.82,138.12,138.09,21.3873]
[1719315118143,7.2387,138.15,138.09,21.3873]
[1719315118344,8.82,138.12,138.09,21.3873]
[1719315118662,18.0938,138.17,138.09,21.3873]
[1719315118954,8.82,138.1,138.09,15.1191]
[1719315119647,8.82,138.1,138.06,21.7474]
[1719315119831,8.82,138.09,138.06,21.7474]
[1719315121132,8.82,138.08,138.06,21.7474]
[1719315121334,8.82,138.07,138.06,15.1103]
[1719315121751,16.0607,138.11,138.06,15.1103]
[1719315121752,8.82,138.11,138.06,15.1103]
[1719315121943,10.00335222,138.16,138.06,15.1103]
[1719315122143,106.4502,138.18,138.08,6.5117]
[1719315122345,8.82,138.13,138.09,0.40681392]
[1719315122551,14.78000773,138.17,138.09,0.40681392]
[1719315122757,7.2381,138.16,138.09,0.40681392]
[1719315122956,8.82,138.13,138.08,15.3317]
[1719315123260,8.82,138.12,138.08,6.5117]
[1719315124846,7.2385,138.15,138.08,6.5117]
[1719315125556,7.2397,138.13,138.08,6.5117]
[1719315126438,7.2392,138.14,138.08,6.5117]
[1719315129247,17.24195222,138.15,138.08,6.5117]
[1719315129765,10.00335222,138.15,138.08,6.5117]
[1719315129941,17.24185222,138.15,138.08,6.5117]
[1719315130744,7.2391,138.14,138.08,6.5117]
[1719315130950,7.2401,138.12,138.08,6.5117]
[1719315131152,7.2401,138.12,138.06,15.1103]
[1719315132465,43.72235222,138.14,138.06,15.1103]
[1719315132654,7.2396,138.13,138.06,15.1103]
[1719315133165,7.2401,138.12,138.06,15.1103]
[1719315133865,7.2397,138.13,138.06,15.1103]
[1719315134258,7.2395,138.13,138.06,15.1103]
[1719315135165,7.2395,138.13,138.07,1.07533794]
[1719315135466,7.2395,138.13,138.07,2.22525237]
[1719315135843,7.24,138.12,138.06,15.1103]
[1719315137161,136.48335222,138.14,138.06,15.1103]